[Event "Early-Titled-Tuesday-Blitz-June-18-2024"]
[Site "Chess.com"]
[Date "2024.06.18"]
[Round "3"]
[White "HamedWafa4"]
[Black "ViIIagra"]
[Result "0-1"]
[WhiteElo "2684"]
[BlackElo "2900"]
[TimeControl "180+1"]
[EndTime "8:30:22 PDT"]
[Termination "ViIIagra won on time"]

1. e4 {[%clk 0:03:00.9]} 1... d6 {[%clk 0:02:58.6]} 2. d4 {[%clk 0:02:58.4]}
2... Nf6 {[%clk 0:02:45.5]} 3. Nc3 {[%clk 0:02:56.8]} 3... e5 {[%clk 0:02:45.9]}
4. dxe5 {[%clk 0:02:55.4]} 4... dxe5 {[%clk 0:02:46.8]} 5. Qxd8+ {[%clk
0:02:54.9]} 5... Kxd8 {[%clk 0:02:47.7]} 6. Nf3 {[%clk 0:02:53.2]} 6... Bd6
{[%clk 0:02:40.7]} 7. Bc4 {[%clk 0:02:49.2]} 7... Ke7 {[%clk 0:02:39]} 8. Bg5
{[%clk 0:02:42.8]} 8... c6 {[%clk 0:02:38.8]} 9. O-O-O {[%clk 0:02:42.4]} 9...
Bc7 {[%clk 0:02:33.8]} 10. a4 {[%clk 0:02:16.4]} 10... a6 {[%clk 0:02:20.7]} 11.
Nh4 {[%clk 0:02:03]} 11... h6 {[%clk 0:02:13.5]} 12. Be3 {[%clk 0:02:02.5]}
12... b6 {[%clk 0:01:55.3]} 13. Nf5+ {[%clk 0:02:00.1]} 13... Bxf5 {[%clk
0:01:54.9]} 14. exf5 {[%clk 0:02:01]} 14... Nbd7 {[%clk 0:01:50.7]} 15. f3
{[%clk 0:01:47.3]} 15... b5 {[%clk 0:01:51]} 16. Bb3 {[%clk 0:01:46.8]} 16...
Rad8 {[%clk 0:01:35.7]} 17. g4 {[%clk 0:01:35]} 17... Bb6 {[%clk 0:01:32.9]} 18.
Bxb6 {[%clk 0:01:33.3]} 18... Nxb6 {[%clk 0:01:33.8]} 19. Rxd8 {[%clk
0:01:28.8]} 19... Rxd8 {[%clk 0:01:32.2]} 20. Re1 {[%clk 0:01:29.5]} 20... Nbd7
{[%clk 0:01:23]} 21. h3 {[%clk 0:01:22.1]} 21... Kf8 {[%clk 0:01:18.3]} 22. Rd1
{[%clk 0:01:08.9]} 22... Ke7 {[%clk 0:01:18.5]} 23. Re1 {[%clk 0:01:08.6]} 23...
Kf8 {[%clk 0:01:15.7]} 24. Rd1 {[%clk 0:01:08.6]} 24... b4 {[%clk 0:01:16.2]}
25. Na2 {[%clk 0:00:55.7]} 25... a5 {[%clk 0:01:16.6]} 26. c3 {[%clk 0:00:55.8]}
26... Rb8 {[%clk 0:01:13.2]} 27. cxb4 {[%clk 0:00:55]} 27... axb4 {[%clk
0:01:14.1]} 28. Kc2 {[%clk 0:00:50.2]} 28... Ke7 {[%clk 0:01:10.8]} 29. Bc4
{[%clk 0:00:47.7]} 29... Ne8 {[%clk 0:00:50.7]} 30. Bxf7 {[%clk 0:00:42.9]}
30... Nd6 {[%clk 0:00:51.2]} 31. Bb3 {[%clk 0:00:38.4]} 31... c5 {[%clk
0:00:50]} 32. Be6 {[%clk 0:00:31.7]} 32... b3+ {[%clk 0:00:40.7]} 33. Bxb3
{[%clk 0:00:30.5]} 33... c4 {[%clk 0:00:41.4]} 34. Bxc4 {[%clk 0:00:30.6]} 34...
Nxc4 {[%clk 0:00:42.1]} 35. Rb1 {[%clk 0:00:29.3]} 35... Nc5 {[%clk 0:00:36.8]}
36. Nc3 {[%clk 0:00:28.7]} 36... Rd8 {[%clk 0:00:27.6]} 37. Ne4 {[%clk
0:00:14.6]} 37... Nxa4 {[%clk 0:00:14.7]} 38. Ra1 {[%clk 0:00:12.2]} 38... Nab6
{[%clk 0:00:09.3]} 39. Ra7+ {[%clk 0:00:07.9]} 39... Rd7 {[%clk 0:00:09.5]} 40.
Ra6 {[%clk 0:00:05]} 40... Ne3+ {[%clk 0:00:08.2]} 41. Kc3 {[%clk 0:00:04.1]}
41... Ned5+ {[%clk 0:00:07.1]} 42. Kb3 {[%clk 0:00:03.6]} 42... Rb7 {[%clk
0:00:06.7]} 43. Nc5 {[%clk 0:00:02.4]} 43... Rb8 {[%clk 0:00:07.3]} 44. Ra7+
{[%clk 0:00:02.8]} 44... Kd6 {[%clk 0:00:07.7]} 45. Ne4+ {[%clk 0:00:02.8]}
45... Kc6 {[%clk 0:00:07.9]} 46. Kc2 {[%clk 0:00:02.8]} 46... Rb7 {[%clk
0:00:05.8]} 47. Ra1 {[%clk 0:00:01.3]} 47... Rc7 {[%clk 0:00:06.1]} 48. Kb3
{[%clk 0:00:01.3]} 48... Kd7 {[%clk 0:00:05.5]} 0-1

[Event "Early-Titled-Tuesday-Blitz-June-18-2024"]
[Site "Chess.com"]
[Date "2024.06.18"]
[Round "3"]
[White "Dolphin_2010"]
[Black "LastGladiator1"]
[Result "0-1"]
[WhiteElo "2740"]
[BlackElo "2976"]
[TimeControl "180+1"]
[EndTime "8:30:24 PDT"]
[Termination "LastGladiator1 won by checkmate"]

1. d4 {[%clk 0:02:47.5]} 1... Nf6 {[%clk 0:02:56.6]} 2. Bg5 {[%clk 0:02:47.1]}
2... d5 {[%clk 0:02:52.1]} 3. Bxf6 {[%clk 0:02:45.6]} 3... gxf6 {[%clk
0:02:44.1]} 4. e3 {[%clk 0:02:40.4]} 4... c5 {[%clk 0:02:43]} 5. Nf3 {[%clk
0:02:30.2]} 5... Nc6 {[%clk 0:02:36.6]} 6. dxc5 {[%clk 0:02:21.7]} 6... e5
{[%clk 0:02:14.3]} 7. c3 {[%clk 0:02:10.5]} 7... Bxc5 {[%clk 0:02:10]} 8. Nbd2
{[%clk 0:02:10.8]} 8... O-O {[%clk 0:02:04.4]} 9. Be2 {[%clk 0:02:05.5]} 9... a5
{[%clk 0:02:01.3]} 10. O-O {[%clk 0:02:03.6]} 10... f5 {[%clk 0:02:01.2]} 11. g3
{[%clk 0:02:02.9]} 11... Be6 {[%clk 0:01:59.1]} 12. a4 {[%clk 0:02:00.5]} 12...
Qf6 {[%clk 0:01:54.2]} 13. Bb5 {[%clk 0:01:36.7]} 13... Rfd8 {[%clk 0:01:47.1]}
14. Rc1 {[%clk 0:01:34.3]} 14... Rac8 {[%clk 0:01:27.6]} 15. Qe2 {[%clk
0:01:12.6]} 15... Bb6 {[%clk 0:01:19.8]} 16. Rfd1 {[%clk 0:01:05]} 16... Ne7
{[%clk 0:01:15.4]} 17. Nh4 {[%clk 0:00:59]} 17... Ng6 {[%clk 0:01:14.5]} 18. Ng2
{[%clk 0:00:45.5]} 18... h6 {[%clk 0:00:56.8]} 19. Qh5 {[%clk 0:00:40.5]} 19...
Qg5 {[%clk 0:00:55.3]} 20. Qxg5 {[%clk 0:00:28.6]} 20... hxg5 {[%clk 0:00:56.2]}
21. Nf3 {[%clk 0:00:27.7]} 21... f6 {[%clk 0:00:54.8]} 22. h4 {[%clk 0:00:27]}
22... g4 {[%clk 0:00:55.1]} 23. Nd2 {[%clk 0:00:20.4]} 23... Ne7 {[%clk
0:00:55.6]} 24. Ne1 {[%clk 0:00:09]} 24... Kf7 {[%clk 0:00:52]} 25. Ng2 {[%clk
0:00:08.5]} 25... Rc7 {[%clk 0:00:50.6]} 26. Nf1 {[%clk 0:00:06.8]} 26... Rdc8
{[%clk 0:00:50.3]} 27. Rd2 {[%clk 0:00:06.6]} 27... Ng6 {[%clk 0:00:48.8]} 28.
Rcd1 {[%clk 0:00:03.4]} 28... Ne7 {[%clk 0:00:47.8]} 29. Rd3 {[%clk 0:00:03.1]}
29... Rc5 {[%clk 0:00:47.8]} 30. R3d2 {[%clk 0:00:04]} 30... Ba7 {[%clk
0:00:47.5]} 31. Re2 {[%clk 0:00:04.2]} 31... R8c7 {[%clk 0:00:45.4]} 32. Nd2
{[%clk 0:00:04.8]} 32... Bb6 {[%clk 0:00:40.4]} 33. Nb3 {[%clk 0:00:04.9]} 33...
Rxb5 {[%clk 0:00:41.1]} 34. axb5 {[%clk 0:00:05.5]} 34... d4 {[%clk 0:00:41.9]}
35. Nc1 {[%clk 0:00:02.1]} 35... Bc4 {[%clk 0:00:36]} 36. Red2 {[%clk
0:00:02.1]} 36... dxc3 {[%clk 0:00:31.9]} 37. bxc3 {[%clk 0:00:03]} 37... Bxb5
{[%clk 0:00:32.6]} 38. Nd3 {[%clk 0:00:03.5]} 38... Rxc3 {[%clk 0:00:32.4]} 39.
Nxe5+ {[%clk 0:00:03.4]} 39... fxe5 {[%clk 0:00:32.1]} 40. Rb2 {[%clk
0:00:02.3]} 40... Ba4 {[%clk 0:00:29.7]} 41. Ra1 {[%clk 0:00:02.7]} 41... Bb3
{[%clk 0:00:30.3]} 42. Ra3 {[%clk 0:00:01.8]} 42... a4 {[%clk 0:00:30.2]} 43. h5
{[%clk 0:00:01.3]} 43... Bc5 {[%clk 0:00:30.3]} 44. Ra1 {[%clk 0:00:01.9]} 44...
a3 {[%clk 0:00:30.4]} 45. Rbb1 {[%clk 0:00:01.9]} 45... a2 {[%clk 0:00:30.4]}
46. Rb2 {[%clk 0:00:02.6]} 46... b5 {[%clk 0:00:30.3]} 47. Nh4 {[%clk
0:00:02.1]} 47... f4 {[%clk 0:00:29.8]} 48. exf4 {[%clk 0:00:01.8]} 48... exf4
{[%clk 0:00:30.7]} 49. Kh2 {[%clk 0:00:01.9]} 49... Kg7 {[%clk 0:00:29.4]} 50.
gxf4 {[%clk 0:00:01.7]} 50... Bxf2 {[%clk 0:00:29.8]} 51. Kg2 {[%clk 0:00:02.4]}
51... Bxh4 {[%clk 0:00:29.9]} 52. f5 {[%clk 0:00:01]} 52... Bf6 {[%clk
0:00:29.9]} 53. Kh2 {[%clk 0:00:01.9]} 53... Be5+ {[%clk 0:00:30]} 54. Kg2
{[%clk 0:00:02.2]} 54... Rg3+ {[%clk 0:00:30.5]} 55. Kf2 {[%clk 0:00:02.7]}
55... Rf3+ {[%clk 0:00:31.4]} 56. Ke2 {[%clk 0:00:02.8]} 56... Bxb2 {[%clk
0:00:32.3]} 57. Kd2 {[%clk 0:00:03.7]} 57... Bxa1 {[%clk 0:00:32.5]} 58. Ke2
{[%clk 0:00:04.6]} 58... Bc3 {[%clk 0:00:31.9]} 59. h6+ {[%clk 0:00:05.5]} 59...
Kh7 {[%clk 0:00:32.1]} 60. f6 {[%clk 0:00:06.3]} 60... Bc4+ {[%clk 0:00:32.8]}
61. Kd1 {[%clk 0:00:06.1]} 61... Bd3 {[%clk 0:00:33.7]} 62. f7 {[%clk
0:00:05.7]} 62... a1=Q# {[%clk 0:00:34.5]} 0-1

[Event "Early-Titled-Tuesday-Blitz-June-18-2024"]
[Site "Chess.com"]
[Date "2024.06.18"]
[Round "3"]
[White "PLAYER_2006_M"]
[Black "arctic_t00"]
[Result "1-0"]
[WhiteElo "2955"]
[BlackElo "2728"]
[TimeControl "180+1"]
[EndTime "8:30:24 PDT"]
[Termination "PLAYER_2006_M won by resignation"]

1. e4 {[%clk 0:03:00.9]} 1... e6 {[%clk 0:03:00.4]} 2. d4 {[%clk 0:02:59.3]}
2... d5 {[%clk 0:03:01.1]} 3. Nc3 {[%clk 0:02:59.4]} 3... Nf6 {[%clk 0:03:00.6]}
4. e5 {[%clk 0:02:59.3]} 4... Nfd7 {[%clk 0:03:01]} 5. f4 {[%clk 0:02:59.9]}
5... c5 {[%clk 0:03:01.7]} 6. Nf3 {[%clk 0:03:00.4]} 6... Nc6 {[%clk 0:03:02.3]}
7. Be3 {[%clk 0:03:00.8]} 7... Be7 {[%clk 0:03:02.8]} 8. a3 {[%clk 0:02:57.2]}
8... O-O {[%clk 0:03:02.5]} 9. Bd3 {[%clk 0:02:56.8]} 9... b6 {[%clk 0:02:59.5]}
10. h4 {[%clk 0:02:51.1]} 10... f5 {[%clk 0:02:57.2]} 11. exf6 {[%clk
0:02:49.1]} 11... Nxf6 {[%clk 0:02:57.4]} 12. Qd2 {[%clk 0:02:43.4]} 12... Bd7
{[%clk 0:02:35.3]} 13. O-O-O {[%clk 0:02:34.1]} 13... c4 {[%clk 0:02:33.6]} 14.
Be2 {[%clk 0:02:31.6]} 14... b5 {[%clk 0:02:34.2]} 15. g4 {[%clk 0:02:12.5]}
15... b4 {[%clk 0:02:30.1]} 16. axb4 {[%clk 0:02:10.2]} 16... Bxb4 {[%clk
0:02:31]} 17. Ng5 {[%clk 0:02:01.1]} 17... Rb8 {[%clk 0:02:26.1]} 18. Qe1 {[%clk
0:01:49.4]} 18... Qa5 {[%clk 0:02:01.6]} 19. Kd2 {[%clk 0:01:48.3]} 19... h6
{[%clk 0:01:54.8]} 20. Ra1 {[%clk 0:01:46.2]} 20... Qb6 {[%clk 0:01:54.2]} 21.
Bf3 {[%clk 0:01:45.9]} 21... Nxd4 {[%clk 0:01:42.1]} 22. Qg1 {[%clk 0:01:24.7]}
22... Bc5 {[%clk 0:01:37.1]} 23. Bd1 {[%clk 0:01:21.9]} 23... Qxb2 {[%clk
0:01:02.9]} 24. Bxd4 {[%clk 0:01:13.3]} 24... Bxd4 {[%clk 0:01:03.1]} 25. Qxd4
{[%clk 0:01:14.2]} 25... Qxa1 {[%clk 0:01:03.4]} 26. Bf3 {[%clk 0:01:09.7]}
26... Qa5 {[%clk 0:00:59.5]} 27. Nh3 {[%clk 0:01:01.3]} 27... Rb2 {[%clk
0:00:49.3]} 28. g5 {[%clk 0:00:56.6]} 28... Ba4 {[%clk 0:00:35.1]} 29. Rc1
{[%clk 0:00:46.6]} 29... hxg5 {[%clk 0:00:31.9]} 30. hxg5 {[%clk 0:00:43.5]}
30... Ne4+ {[%clk 0:00:26.6]} 31. Bxe4 {[%clk 0:00:43.9]} 31... dxe4 {[%clk
0:00:27.5]} 32. Qxc4 {[%clk 0:00:37.1]} 32... Qf5 {[%clk 0:00:20.5]} 33. Nxa4
{[%clk 0:00:31.7]} 33... Rbb8 {[%clk 0:00:21.1]} 34. Qc3 {[%clk 0:00:29.4]}
34... Rfd8+ {[%clk 0:00:19.5]} 35. Ke1 {[%clk 0:00:27.5]} 35... Qg4 {[%clk
0:00:17.4]} 36. Qe3 {[%clk 0:00:23.6]} 36... Rb4 {[%clk 0:00:14.1]} 37. Nc3
{[%clk 0:00:23.7]} 37... Rbd4 {[%clk 0:00:13.3]} 38. Ne2 {[%clk 0:00:21.5]}
38... Rd2 {[%clk 0:00:07.8]} 39. Nhg1 {[%clk 0:00:22.1]} 39... a5 {[%clk
0:00:07]} 40. Qxd2 {[%clk 0:00:21.4]} 40... Rxd2 {[%clk 0:00:06.8]} 41. Kxd2
{[%clk 0:00:22.3]} 41... e5 {[%clk 0:00:03.2]} 42. Ke3 {[%clk 0:00:21.4]} 42...
exf4+ {[%clk 0:00:03.4]} 43. Nxf4 {[%clk 0:00:22.3]} 43... Qg3+ {[%clk
0:00:03.9]} 44. Kxe4 {[%clk 0:00:22.7]} 44... a4 {[%clk 0:00:03.6]} 45. Nf3
{[%clk 0:00:21.4]} 45... Qf2 {[%clk 0:00:03.8]} 46. c4 {[%clk 0:00:20.6]} 46...
Qb2 {[%clk 0:00:03.7]} 47. Nd3 {[%clk 0:00:20.1]} 47... Qb3 {[%clk 0:00:03.3]}
48. c5 {[%clk 0:00:17.9]} 48... a3 {[%clk 0:00:03.4]} 49. Nd4 {[%clk 0:00:17.2]}
49... Qa4 {[%clk 0:00:01.9]} 50. c6 {[%clk 0:00:17.4]} 50... a2 {[%clk
0:00:02.4]} 51. c7 {[%clk 0:00:17.9]} 51... Qa8+ {[%clk 0:00:02.7]} 52. Ke3
{[%clk 0:00:17]} 52... Qc8 {[%clk 0:00:03.6]} 53. g6 {[%clk 0:00:15.2]} 53...
Kf8 {[%clk 0:00:02.9]} 54. Nf4 {[%clk 0:00:14.7]} 54... Qxc7 {[%clk 0:00:02.9]}
55. Nfe6+ {[%clk 0:00:13.6]} 55... Ke7 {[%clk 0:00:03.5]} 56. Rxc7+ {[%clk
0:00:13.8]} 1-0

[Event "Early-Titled-Tuesday-Blitz-June-18-2024"]
[Site "Chess.com"]
[Date "2024.06.18"]
[Round "3"]
[White "TimGrutter03"]
[Black "laskakid"]
[Result "0-1"]
[WhiteElo "2603"]
[BlackElo "2387"]
[TimeControl "180+1"]
[EndTime "8:30:26 PDT"]
[Termination "laskakid won by checkmate"]

1. e4 {[%clk 0:03:00.9]} 1... d6 {[%clk 0:03:00]} 2. d4 {[%clk 0:03:00.7]} 2...
Nf6 {[%clk 0:03:00.3]} 3. f3 {[%clk 0:02:59]} 3... e5 {[%clk 0:02:58.5]} 4. Be3
{[%clk 0:02:58.5]} 4... exd4 {[%clk 0:02:53.6]} 5. Bxd4 {[%clk 0:02:58]} 5...
Nc6 {[%clk 0:02:53.9]} 6. Bc3 {[%clk 0:02:58.5]} 6... Be7 {[%clk 0:02:52]} 7.
Bc4 {[%clk 0:02:53]} 7... O-O {[%clk 0:02:51.7]} 8. Ne2 {[%clk 0:02:52.1]} 8...
Be6 {[%clk 0:02:51.4]} 9. Bxe6 {[%clk 0:02:52]} 9... fxe6 {[%clk 0:02:51.5]} 10.
Nd2 {[%clk 0:02:43]} 10... d5 {[%clk 0:02:46.3]} 11. exd5 {[%clk 0:02:36.2]}
11... exd5 {[%clk 0:02:44.6]} 12. Nb3 {[%clk 0:02:30.8]} 12... a5 {[%clk
0:02:36.9]} 13. Nbd4 {[%clk 0:02:27.3]} 13... Nxd4 {[%clk 0:02:31.6]} 14. Nxd4
{[%clk 0:02:28.2]} 14... Qd7 {[%clk 0:02:30]} 15. Qe2 {[%clk 0:02:08.7]} 15...
c5 {[%clk 0:02:21.7]} 16. Qe6+ {[%clk 0:02:08.5]} 16... Qxe6+ {[%clk 0:02:08.9]}
17. Nxe6 {[%clk 0:02:09.4]} 17... Rfc8 {[%clk 0:02:02.9]} 18. O-O-O {[%clk
0:01:38.4]} 18... d4 {[%clk 0:01:59.7]} 19. Bd2 {[%clk 0:01:38.7]} 19... h6
{[%clk 0:01:50.4]} 20. Rhe1 {[%clk 0:01:34.4]} 20... Kf7 {[%clk 0:01:49.6]} 21.
Nf4 {[%clk 0:01:29.1]} 21... c4 {[%clk 0:01:39.3]} 22. Ng6 {[%clk 0:01:14.3]}
22... Bb4 {[%clk 0:01:23.3]} 23. Bxb4 {[%clk 0:01:02.1]} 23... axb4 {[%clk
0:01:22.9]} 24. Rxd4 {[%clk 0:00:52.3]} 24... Kxg6 {[%clk 0:01:15.6]} 25. Kb1
{[%clk 0:00:41.8]} 25... Ra5 {[%clk 0:01:07]} 26. b3 {[%clk 0:00:40.2]} 26...
Rd5 {[%clk 0:00:53.4]} 27. Rxc4 {[%clk 0:00:34.8]} 27... Rxc4 {[%clk 0:00:50.5]}
28. bxc4 {[%clk 0:00:35.7]} 28... Rd7 {[%clk 0:00:34.3]} 29. Kb2 {[%clk
0:00:34.3]} 29... Rd2 {[%clk 0:00:28.5]} 30. Re7 {[%clk 0:00:32.4]} 30... Rxg2
{[%clk 0:00:28.4]} 31. Rxb7 {[%clk 0:00:32.4]} 31... Rxh2 {[%clk 0:00:26.7]} 32.
Rxb4 {[%clk 0:00:26.9]} 32... Rh5 {[%clk 0:00:23.1]} 33. a4 {[%clk 0:00:23.9]}
33... Rc5 {[%clk 0:00:22.3]} 34. Kb3 {[%clk 0:00:23.4]} 34... h5 {[%clk
0:00:21.9]} 35. Rb5 {[%clk 0:00:19]} 35... Rc6 {[%clk 0:00:16.6]} 36. c5 {[%clk
0:00:07.9]} 36... h4 {[%clk 0:00:13.6]} 37. Kc4 {[%clk 0:00:08.4]} 37... Nd7
{[%clk 0:00:08.5]} 38. a5 {[%clk 0:00:03.5]} 38... h3 {[%clk 0:00:06.2]} 39. Rb1
{[%clk 0:00:02.2]} 39... Rxc5+ {[%clk 0:00:05.9]} 40. Kb4 {[%clk 0:00:02.5]}
40... h2 {[%clk 0:00:05.1]} 41. Rh1 {[%clk 0:00:02.6]} 41... Rh5 {[%clk
0:00:05.1]} 42. a6 {[%clk 0:00:03.2]} 42... Nb6 {[%clk 0:00:04.8]} 43. a7 {[%clk
0:00:02.7]} 43... Kf6 {[%clk 0:00:03.7]} 44. c4 {[%clk 0:00:03.3]} 44... Ke6
{[%clk 0:00:03.2]} 45. c5 {[%clk 0:00:03.8]} 45... Na8 {[%clk 0:00:03.2]} 46.
Kb5 {[%clk 0:00:04.2]} 46... Kd7 {[%clk 0:00:03.4]} 47. Ka6 {[%clk 0:00:01.9]}
47... Kc7 {[%clk 0:00:03.5]} 48. c6 {[%clk 0:00:01.5]} 48... Kxc6 {[%clk
0:00:03.4]} 49. Rc1+ {[%clk 0:00:02.2]} 49... Kd7 {[%clk 0:00:02.8]} 50. Kb7
{[%clk 0:00:01.3]} 50... h1=Q {[%clk 0:00:02.3]} 51. Rxh1 {[%clk 0:00:02]} 51...
Rxh1 {[%clk 0:00:01.7]} 52. Kxa8 {[%clk 0:00:02.9]} 52... Rb1 {[%clk 0:00:01.5]}
53. f4 {[%clk 0:00:03.2]} 53... Kc7 {[%clk 0:00:01]} 54. f5 {[%clk 0:00:03.7]}
54... Rd1 {[%clk 0:00:01.3]} 55. f6 {[%clk 0:00:04.4]} 55... Rd8# {[%clk
0:00:01.4]} 0-1

[Event "Early-Titled-Tuesday-Blitz-June-18-2024"]
[Site "Chess.com"]
[Date "2024.06.18"]
[Round "3"]
[White "Sofia_Blokhin"]
[Black "ketster"]
[Result "0-1"]
[WhiteElo "2308"]
[BlackElo "2571"]
[TimeControl "180+1"]
[EndTime "8:30:26 PDT"]
[Termination "ketster won on time"]

1. d4 {[%clk 0:03:00.9]} 1... d5 {[%clk 0:02:52.7]} 2. c4 {[%clk 0:02:59.5]}
2... e5 {[%clk 0:02:49.7]} 3. dxe5 {[%clk 0:02:56.1]} 3... Ne7 {[%clk
0:02:49.9]} 4. e3 {[%clk 0:02:53.8]} 4... Nbc6 {[%clk 0:02:49.3]} 5. f4 {[%clk
0:02:52]} 5... Be6 {[%clk 0:02:41.8]} 6. Nc3 {[%clk 0:02:43.2]} 6... dxc4 {[%clk
0:02:40.2]} 7. Qxd8+ {[%clk 0:02:38.3]} 7... Rxd8 {[%clk 0:02:41.1]} 8. Nf3
{[%clk 0:02:35.2]} 8... Nb4 {[%clk 0:02:34.2]} 9. Kf2 {[%clk 0:02:27.5]} 9... f6
{[%clk 0:02:12.5]} 10. exf6 {[%clk 0:02:22.9]} 10... gxf6 {[%clk 0:02:09.3]} 11.
Nd4 {[%clk 0:02:21.5]} 11... Bf7 {[%clk 0:02:00.3]} 12. a3 {[%clk 0:02:18.8]}
12... Nbc6 {[%clk 0:01:50.9]} 13. Nf3 {[%clk 0:02:00.8]} 13... a6 {[%clk
0:01:43.9]} 14. e4 {[%clk 0:01:53.6]} 14... Ng6 {[%clk 0:01:27.9]} 15. Be3
{[%clk 0:01:48.7]} 15... Bd6 {[%clk 0:01:25.3]} 16. g3 {[%clk 0:01:46.8]} 16...
O-O {[%clk 0:01:18.3]} 17. h4 {[%clk 0:01:42.9]} 17... h5 {[%clk 0:01:15.4]} 18.
Be2 {[%clk 0:01:38.4]} 18... Rfe8 {[%clk 0:01:12.2]} 19. Rad1 {[%clk 0:01:31.8]}
19... b5 {[%clk 0:01:04.5]} 20. Nd4 {[%clk 0:01:23.2]} 20... Nge7 {[%clk
0:00:56.5]} 21. Bf3 {[%clk 0:01:07.9]} 21... Na5 {[%clk 0:00:41.7]} 22. g4
{[%clk 0:00:48.3]} 22... c5 {[%clk 0:00:31.4]} 23. Nf5 {[%clk 0:00:42.5]} 23...
Nxf5 {[%clk 0:00:30.2]} 24. gxf5 {[%clk 0:00:31.5]} 24... Nb3 {[%clk 0:00:26.6]}
25. Nd5 {[%clk 0:00:28.7]} 25... Bxd5 {[%clk 0:00:22.5]} 26. Rxd5 {[%clk
0:00:27.8]} 26... Nd4 {[%clk 0:00:21.8]} 27. Bxh5 {[%clk 0:00:23.7]} 27... Rxe4
{[%clk 0:00:21.1]} 28. Rg1+ {[%clk 0:00:21.6]} 28... Kh8 {[%clk 0:00:18.8]} 29.
Rg6 {[%clk 0:00:18.7]} 29... Be7 {[%clk 0:00:16.9]} 30. Rh6+ {[%clk 0:00:16.8]}
30... Kg7 {[%clk 0:00:15.4]} 31. Rg6+ {[%clk 0:00:16.7]} 31... Kh7 {[%clk
0:00:14.1]} 32. Rxd8 {[%clk 0:00:11.2]} 32... Bxd8 {[%clk 0:00:15]} 33. Rg3
{[%clk 0:00:09.5]} 33... Bc7 {[%clk 0:00:10.3]} 34. Bg6+ {[%clk 0:00:09.3]}
34... Kh6 {[%clk 0:00:07.9]} 35. Bf7 {[%clk 0:00:08.6]} 35... Bxf4 {[%clk
0:00:07.2]} 36. Rg6+ {[%clk 0:00:07.2]} 36... Kh7 {[%clk 0:00:07.6]} 37. Bxf4
{[%clk 0:00:06.9]} 37... Rxf4+ {[%clk 0:00:08.5]} 38. Ke3 {[%clk 0:00:07.1]}
38... Rxf5 {[%clk 0:00:08.8]} 39. Rg1 {[%clk 0:00:04.6]} 39... Rf3+ {[%clk
0:00:09]} 40. Ke4 {[%clk 0:00:04.5]} 40... Rf2 {[%clk 0:00:08.3]} 41. Bg6+
{[%clk 0:00:04.1]} 41... Kh8 {[%clk 0:00:07.7]} 42. Bf7 {[%clk 0:00:04.2]} 42...
Rxb2 {[%clk 0:00:04.7]} 43. Rg8+ {[%clk 0:00:03.5]} 43... Kh7 {[%clk 0:00:04.9]}
44. Rg1 {[%clk 0:00:03.5]} 44... Re2+ {[%clk 0:00:05.3]} 45. Kd5 {[%clk
0:00:03.1]} 45... c3 {[%clk 0:00:03.9]} 46. Bg6+ {[%clk 0:00:03.4]} 46... Kh6
{[%clk 0:00:03.8]} 47. Bd3 {[%clk 0:00:03.1]} 47... Rd2 {[%clk 0:00:03.7]} 48.
Rg6+ {[%clk 0:00:03.1]} 48... Kh5 {[%clk 0:00:04.2]} 49. Ke4 {[%clk 0:00:01.4]}
49... Rxd3 {[%clk 0:00:03.7]} 50. Kxd3 {[%clk 0:00:01.5]} 50... Kxg6 {[%clk
0:00:04.2]} 0-1

[Event "Early-Titled-Tuesday-Blitz-June-18-2024"]
[Site "Chess.com"]
[Date "2024.06.18"]
[Round "3"]
[White "Pingah9"]
[Black "BestestBP"]
[Result "0-1"]
[WhiteElo "2483"]
[BlackElo "2273"]
[TimeControl "180+1"]
[EndTime "8:30:27 PDT"]
[Termination "BestestBP won by checkmate"]

1. e4 {[%clk 0:03:00.9]} 1... e5 {[%clk 0:02:55.1]} 2. Nf3 {[%clk 0:02:59.7]}
2... Nc6 {[%clk 0:02:55.8]} 3. Bb5 {[%clk 0:02:58]} 3... a6 {[%clk 0:02:54.5]}
4. Ba4 {[%clk 0:02:58.1]} 4... Nf6 {[%clk 0:02:54.3]} 5. O-O {[%clk 0:02:57.8]}
5... Be7 {[%clk 0:02:54.9]} 6. Re1 {[%clk 0:02:57.5]} 6... b5 {[%clk 0:02:54.5]}
7. Bb3 {[%clk 0:02:57.2]} 7... d6 {[%clk 0:02:54.5]} 8. c3 {[%clk 0:02:56.5]}
8... Na5 {[%clk 0:02:54.6]} 9. Bc2 {[%clk 0:02:56.4]} 9... c5 {[%clk 0:02:54.3]}
10. h3 {[%clk 0:02:55.9]} 10... g5 {[%clk 0:02:54.4]} 11. d4 {[%clk 0:02:36.7]}
11... g4 {[%clk 0:02:39.9]} 12. dxe5 {[%clk 0:02:22.3]} 12... dxe5 {[%clk
0:02:34.1]} 13. Qxd8+ {[%clk 0:02:22.2]} 13... Bxd8 {[%clk 0:02:35]} 14. hxg4
{[%clk 0:02:13.6]} 14... Nxg4 {[%clk 0:02:33.8]} 15. Nbd2 {[%clk 0:02:01.4]}
15... h5 {[%clk 0:02:30.2]} 16. Nb3 {[%clk 0:01:47.3]} 16... Nxb3 {[%clk
0:02:15.6]} 17. axb3 {[%clk 0:01:48.2]} 17... h4 {[%clk 0:02:13]} 18. Bd3 {[%clk
0:01:43.5]} 18... Bb7 {[%clk 0:01:54.1]} 19. Ng5 {[%clk 0:01:30.5]} 19... Bb6
{[%clk 0:01:44.1]} 20. Be2 {[%clk 0:01:17.1]} 20... Nf6 {[%clk 0:01:32.4]} 21.
Bf3 {[%clk 0:01:15.8]} 21... Ke7 {[%clk 0:01:22.8]} 22. Be3 {[%clk 0:01:15]}
22... Rag8 {[%clk 0:01:20.8]} 23. Kh2 {[%clk 0:00:54.4]} 23... Bc8 {[%clk
0:00:58.8]} 24. Nh3 {[%clk 0:00:38.4]} 24... Ng4+ {[%clk 0:00:46.8]} 25. Bxg4
{[%clk 0:00:38.1]} 25... Rxg4 {[%clk 0:00:47.7]} 26. f3 {[%clk 0:00:29.5]} 26...
Rg6 {[%clk 0:00:43.2]} 27. b4 {[%clk 0:00:26]} 27... Rhg8 {[%clk 0:00:39.3]} 28.
Re2 {[%clk 0:00:25.7]} 28... cxb4 {[%clk 0:00:27.4]} 29. Bxb6 {[%clk 0:00:21.1]}
29... Rxb6 {[%clk 0:00:28.3]} 30. cxb4 {[%clk 0:00:21.4]} 30... Be6 {[%clk
0:00:26.4]} 31. Nf2 {[%clk 0:00:19.4]} 31... Bc4 {[%clk 0:00:24.3]} 32. Rd2
{[%clk 0:00:19.8]} 32... Rbg6 {[%clk 0:00:21.7]} 33. Ng4 {[%clk 0:00:20]} 33...
f6 {[%clk 0:00:18.4]} 34. Ne3 {[%clk 0:00:19.2]} 34... Rc8 {[%clk 0:00:16.6]}
35. Nf5+ {[%clk 0:00:18.9]} 35... Kf8 {[%clk 0:00:15.9]} 36. Rad1 {[%clk
0:00:19]} 36... Be6 {[%clk 0:00:15.5]} 37. Nxh4 {[%clk 0:00:16.4]} 37... Rh6
{[%clk 0:00:15.1]} 38. Kg3 {[%clk 0:00:16.6]} 38... Ke7 {[%clk 0:00:14]} 39.
Nf5+ {[%clk 0:00:16.9]} 39... Bxf5 {[%clk 0:00:14.4]} 40. exf5 {[%clk
0:00:17.8]} 40... Rc7 {[%clk 0:00:10.5]} 41. Rd6 {[%clk 0:00:17]} 41... Rh5
{[%clk 0:00:10.8]} 42. Re6+ {[%clk 0:00:15.4]} 42... Kf7 {[%clk 0:00:10.8]} 43.
Rxa6 {[%clk 0:00:14.6]} 43... Rg5+ {[%clk 0:00:09.3]} 44. Kh3 {[%clk 0:00:13.4]}
44... Rxf5 {[%clk 0:00:08.6]} 45. Rd8 {[%clk 0:00:11.8]} 45... Rh5+ {[%clk
0:00:06.2]} 46. Kg3 {[%clk 0:00:11.1]} 46... Rg5+ {[%clk 0:00:06.5]} 47. Kh3
{[%clk 0:00:11.2]} 47... Rh5+ {[%clk 0:00:06.2]} 48. Kg3 {[%clk 0:00:11.3]}
48... Rg5+ {[%clk 0:00:06.5]} 49. Kf2 {[%clk 0:00:11.6]} 49... Rc2+ {[%clk
0:00:06.3]} 50. Ke3 {[%clk 0:00:12.1]} 50... Rgxg2 {[%clk 0:00:05.8]} 51. Ra7+
{[%clk 0:00:06.8]} 51... Ke6 {[%clk 0:00:04.6]} 52. Re8+ {[%clk 0:00:04.1]}
52... Kf5 {[%clk 0:00:05]} 53. Kd3 {[%clk 0:00:02.6]} 53... Rgd2+ {[%clk
0:00:05.1]} 54. Ke3 {[%clk 0:00:03.1]} 54... Re2+ {[%clk 0:00:05.5]} 55. Kd3
{[%clk 0:00:03.5]} 55... Kf4 {[%clk 0:00:05.8]} 56. Rf8 {[%clk 0:00:02.3]} 56...
Red2# {[%clk 0:00:06.1]} 0-1